bitfinex-derivatives/quotes_ETHF0:USTF0_20250629
["timestamp","ask_amount","ask_price","bid_price","bid_amount"]
[1751236282804,3.69096,2483.1,2482.5,0.48327]
[1751236283002,3.69096,2483.1,2482.4,3.2078]
[1751236283003,0.48321,2482.8,2482.4,3.2078]
[1751236283204,1.5401,2483.0,2482.4,3.2078]
[1751236283408,2.02328,2483.0,2482.4,3.69107]
[1751236283603,3.2078,2483.4,2482.8,3.2078]
[1751236283810,4.7479,2483.4,2482.5,3.28921223]
[1751236284006,0.48314,2483.2,2482.6,1.174362]
[1751236284203,3.2078,2483.4,2482.7,8.298]
[1751236284404,1.5686,2483.6,2482.8,8.18040706]
[1751236284608,1.5686,2483.6,2482.8,5.30169]
[1751236284804,1.5686,2483.6,2482.8,3.2078]
[1751236284805,0.4831,2483.4,2482.8,3.2078]
[1751236285010,1.5686,2483.6,2482.8,3.2078]
[1751236285011,0.48316,2483.1,2482.8,3.2078]
[1751236285210,2.05177,2483.0,2482.5,1.13472398]
[1751236285407,2.05177,2483.0,2482.4,3.2078]
[1751236285408,1.5686,2483.0,2482.4,3.2078]
[1751236285612,1.5686,2483.0,2482.5,1.17543131]
[1751236285813,1.5686,2483.0,2482.3,8.78129]
[1751236286012,2.05178,2483.0,2482.4,0.48328]
[1751236286313,1.5686,2483.0,2482.3,8.298]
[1751236286509,3.2078,2482.9,2482.1,8.299]
[1751236286709,1.5686,2482.8,2482.3,0.4833]
[1751236286915,1.5686,2482.8,2482.4,0.53380621]
[1751236287119,1.5686,2482.8,2482.5,0.53380621]
[1751236287313,0.48323,2482.7,2482.6,0.53380621]
[1751236287514,0.48326,2482.6,2482.0,1.66092283]
[1751236287716,3.2078,2483.2,2482.2,3.2078]
[1751236287915,1.6903,2483.1,2482.5,3.69106]
[1751236288116,1.6903,2483.1,2482.2,3.2078]
[1751236288417,1.6903,2483.1,2482.3,9.47632969]
[1751236288418,0.48322,2482.8,2482.3,9.47632969]
[1751236288611,1.6903,2482.7,2482.4,0.48327]
[1751236288818,1.6903,2482.7,2482.5,3.2078]
[1751236289217,3.69094,2483.2,2482.5,3.2078]
[1751236289415,3.2078,2483.2,2482.5,3.2078]
[1751236289619,3.2078,2483.2,2482.1,29.09272398]
[1751236289620,3.2078,2482.8,2482.1,1.13472398]
[1751236289922,0.48331,2482.3,2481.7,4.82593398]
[1751236290122,2.17363,2482.2,2481.8,1.17792602]
[1751236290419,0.48334,2482.1,2481.6,0.48344]
[1751236290622,2.11996,2482.0,2481.7,1.1767978]
[1751236290923,2.11996,2482.0,2481.6,0.48343]
[1751236290924,1.6366,2482.0,2481.6,0.48343]
[1751236291216,0.48339,2481.9,2481.3,12.64152398]
[1751236291416,2.12,2481.8,2481.4,1.66057517]
[1751236291616,1.6366,2481.8,2481.5,1.17710517]
[1751236291817,1.6366,2481.8,2481.3,12.64152398]
[1751236292016,1.6366,2481.8,2481.4,1.17664019]
[1751236292218,1.6366,2481.8,2481.5,1.17664019]
[1751236292418,1.6366,2481.8,2481.5,0.48345]
[1751236293018,1.6366,2481.8,2481.6,0.48343]
[1751236293221,1.6366,2481.8,2481.3,11.5068]
[1751236293621,3.2078,2482.2,2481.6,0.48342]
[1751236293822,3.2078,2482.2,2481.4,1.5503]
[1751236293823,1.6593,2482.1,2481.4,1.5503]
[1751236294024,1.6593,2482.1,2481.3,3.2078]
[1751236294222,3.2078,2481.9,2481.3,3.2078]
[1751236294421,0.48345,2481.6,2481.3,3.2078]
[1751236294617,1.6593,2481.8,2481.3,3.2078]
[1751236294921,1.6593,2481.8,2481.4,0.48348]
[1751236295223,0.48343,2481.7,2481.3,3.2078]
[1751236295422,2.14274,2481.6,2481.3,3.2078]
[1751236296022,1.6593,2481.6,2481.3,3.2078]
[1751236296418,0.48348,2481.4,2481.3,3.2078]
[1751236296625,11.5098,2481.5,2480.9,4.38256873]
[1751236296923,3.69137,2481.0,2480.6,0.48364]
[1751236297123,1.564,2480.9,2480.6,0.48364]
[1751236297324,0.48361,2480.8,2480.5,3.2078]
[1751236297517,1.564,2480.7,2480.5,3.2078]
[1751236297721,3.2078,2481.0,2480.7,0.4836]
[1751236298121,3.2078,2481.0,2480.5,3.2078]
[1751236298322,3.2078,2481.0,2480.5,4.8346]
[1751236298526,3.2078,2481.0,2480.7,0.4836]
[1751236298725,3.2078,2481.0,2480.8,0.48359]
[1751236299022,0.4836,2480.8,2480.5,3.2078]
[1751236299223,1.564,2480.9,2480.6,0.48362]
[1751236299527,1.564,2480.9,2480.5,3.2078]
[1751236300223,3.2078,2480.7,2480.6,0.48364]
[1751236300625,3.2078,2480.7,2480.4,0.48367]
[1751236300926,3.2078,2480.7,2480.1,8.20556274]
[1751236300927,1.7323,2480.6,2480.3,0.48369]
[1751236301517,1.7323,2480.6,2480.4,0.48367]
[1751236301719,1.7323,2480.6,2480.1,3.2078]
[1751236302120,3.2078,2480.4,2479.7,3.6916]
[1751236302322,1.7323,2480.3,2479.7,3.2078]
[1751236302527,0.48383,2479.7,2479.3,3.2078]
[1751236302731,1.6807,2479.6,2479.3,3.2078]
[1751236302921,1.6807,2479.6,2479.3,4.34252398]
[1751236303122,8.305,2479.5,2478.7,3.2078]
[1751236303329,8.305,2479.5,2478.3,2.71283604]
[1751236303330,3.2078,2478.8,2478.3,1.13472398]
[1751236303626,3.2078,2478.4,2478.0,1.13472398]
[1751236303822,3.2078,2478.1,2478.0,1.13472398]
[1751236304027,3.69192,2478.1,2478.0,1.13472398]
[1751236304226,8.2078,2478.1,2477.8,1.13472398]
[1751236304424,1.6807,2478.0,2477.7,1.13472398]
[1751236304625,1.6807,2478.0,2477.7,0.4842]
[1751236304626,3.2078,2477.8,2477.7,0.4842]
[1751236304822,8.20556274,2477.8,2477.5,1.14589811]
[1751236305027,8.20556274,2477.8,2477.0,3.08134689]
[1751236305028,9.9887,2477.7,2477.2,2.29193566]
[1751236305228,8.308,2477.6,2477.0,3.08134689]
[1751236305429,3.2078,2477.4,2477.0,0.48433]
[1751236305631,1.6194,2477.3,2477.0,0.48433]
[1751236305831,1.6194,2477.3,2476.8,3.08134689]
[1751236306023,1.733,2477.7,2477.0,3.2078]
[1751236306231,3.2078,2477.6,2476.6,6.28914689]
[1751236306429,3.2078,2477.2,2476.6,3.2078]
[1751236306629,1.6194,2477.1,2476.6,3.2078]
[1751236306829,3.2078,2476.9,2476.1,3.2078]
[1751236307031,3.2078,2476.6,2476.5,0.48443]
[1751236307231,9.9434,2476.8,2476.2,0.48448]
[1751236307426,9.9434,2476.8,2476.0,3.2078]
[1751236307427,3.2078,2476.6,2476.0,3.69232]
[1751236307631,1.6194,2476.5,2476.2,0.48448]
[1751236307835,1.6194,2476.5,2476.0,3.2078]
[1751236308328,3.2078,2476.9,2476.4,3.2078]
[1751236308533,3.2078,2476.9,2475.8,3.2078]
[1751236308732,3.2078,2476.6,2476.4,0.48445]
[1751236308926,3.2078,2476.6,2476.5,0.48444]
[1751236309327,3.2078,2476.6,2475.8,3.2078]
[1751236309732,3.2078,2477.1,2476.9,0.48435]
[1751236309929,3.2078,2477.1,2476.5,3.2078]
[1751236310130,3.2078,2476.8,2476.2,3.2078]
[1751236310328,1.5904,2476.7,2476.2,3.69228]
[1751236310535,1.5904,2476.7,2475.9,3.2078]
[1751236310731,1.5904,2476.7,2475.2,1.7007]
[1751236310732,1.5904,2476.7,2476.0,3.2078]
[1751236311232,1.5904,2476.7,2476.6,0.48442]
[1751236311835,8.331,2476.9,2476.8,0.48437]
[1751236312135,3.2078,2477.1,2476.1,1.6164]
[1751236312332,3.2078,2476.8,2476.1,1.6164]
[1751236312837,9.9711,2477.0,2476.7,0.48439]
[1751236313232,1.6401,2477.0,2476.1,11.86434126]
[1751236313534,1.6401,2477.0,2476.7,0.48439]
[1751236313734,3.2078,2477.1,2476.4,3.2078]
[1751236313932,3.2078,2477.1,2476.5,1.6503]
[1751236314133,3.2078,2477.1,2476.8,0.48437]
[1751236314333,0.48442,2476.7,2476.4,3.2078]
[1751236314634,10.0655,2477.4,2476.0,3.2078]
[1751236314635,11.5408,2476.8,2476.0,3.2078]
[1751236314837,3.2078,2476.8,2476.7,0.4844]
[1751236315039,1.6401,2477.0,2476.9,0.48436]
[1751236315234,3.2078,2477.1,2477.0,0.48434]
[1751236315433,3.2078,2477.5,2476.9,3.2078]
[1751236315633,3.2078,2477.5,2477.4,0.48426]
[1751236316036,3.2078,2477.9,2477.3,3.2078]
[1751236316231,3.2078,2477.8,2477.7,0.4842]
[1751236316427,8.333,2478.1,2477.3,3.2078]
[1751236316428,3.2078,2478.1,2478.0,0.48414]
[1751236316635,1.7304,2478.3,2477.9,0.48415]
[1751236316829,1.7304,2478.3,2477.4,1.6328]
[1751236317035,1.7304,2478.3,2477.3,3.2078]
[1751236317036,8.334,2478.2,2477.3,3.2078]
[1751236317333,1.7304,2478.1,2477.9,0.48415]
[1751236317529,3.2078,2478.3,2477.7,3.2078]
[1751236317734,3.2078,2478.3,2478.2,0.4841]
[1751236318134,3.2078,2478.6,2478.3,0.48407]
[1751236318329,3.2078,2478.6,2477.8,8.67294126]
[1751236318330,3.2078,2478.6,2477.9,0.48415]
[1751236318530,3.2078,2478.0,2477.5,1.6138]
[1751236318731,3.2078,2478.4,2477.5,1.6138]
[1751236318933,3.2078,2478.4,2477.8,3.2078]
[1751236319332,3.2078,2478.4,2477.7,3.2078]
[1751236319837,1.6683,2478.3,2477.9,0.48416]
[1751236320040,0.48411,2478.2,2477.7,3.2078]
[1751236320331,5.36024,2478.1,2477.7,3.2078]
[1751236320534,4.8761,2478.1,2477.7,3.2078]
[1751236320738,13.2091,2478.1,2477.7,3.2078]
[1751236321033,4.8761,2478.1,2477.7,3.2078]
[1751236321234,1.6683,2478.1,2477.3,11.5408]
[1751236321430,0.48426,2477.4,2476.9,3.2078]
[1751236321630,1.6514,2477.3,2476.9,3.2078]
[1751236321837,0.48437,2476.9,2476.5,3.2078]
[1751236322035,1.6514,2476.8,2476.5,3.69223]
[1751236322434,1.6514,2476.8,2476.5,3.2078]
[1751236322936,13.1932,2476.8,2476.2,3.2078]
[1751236323138,0.48442,2476.6,2476.2,3.2078]
[1751236323337,13.1932,2476.8,2476.2,3.2078]
[1751236323338,2.13584,2476.5,2476.2,3.2078]
[1751236323531,0.48446,2476.4,2476.2,3.2078]
[1751236323843,8.334,2476.9,2476.5,0.48443]
[1751236324145,3.2078,2477.5,2476.7,3.2078]
[1751236324435,3.2078,2477.5,2476.7,0.4844]
[1751236324640,3.2078,2477.1,2476.5,3.2078]
[1751236324836,3.2078,2477.1,2476.4,1.7284]
[1751236324837,9.9423,2477.4,2476.8,3.69217]
[1751236325035,9.9423,2477.4,2476.6,1.6694]
[1751236325036,13.1501,2477.4,2476.7,0.48439]
[1751236325242,13.1501,2477.4,2476.5,3.2078]
[1751236325438,3.2078,2477.1,2476.2,3.2078]
[1751236325736,8.25075126,2477.5,2476.2,3.2078]
[1751236325737,3.2078,2476.8,2476.2,3.2078]
[1751236325938,0.48451,2476.2,2475.8,3.2078]
[1751236326138,1.6083,2476.1,2475.8,3.2078]
[1751236326343,0.48454,2476.0,2475.8,3.2078]
[1751236326539,1.6083,2475.9,2475.8,3.2078]
[1751236327146,2.09286,2475.9,2475.4,3.69244]
[1751236327541,3.2078,2475.7,2474.8,3.2078]
[1751236327846,3.69246,2475.4,2474.9,0.48474]
[1751236328140,0.48475,2474.9,2474.8,3.2078]
[1751236328341,3.2078,2475.0,2474.6,3.85168362]
[1751236328533,11.5428,2475.0,2474.3,5.39235707]
[1751236328738,1.5959,2474.9,2474.1,3.85168362]
[1751236328935,3.2078,2474.4,2474.1,3.85168362]
[1751236329445,1.5959,2474.3,2473.9,3.69273]
[1751236329640,3.2078,2474.4,2474.2,3.84043867]
[1751236329845,3.2078,2474.4,2474.1,3.84043867]
[1751236330046,3.2078,2474.7,2474.4,0.48484]
[1751236330344,48.446,2475.2,2474.0,1.8286]
[1751236330345,3.2078,2475.3,2474.9,0.48474]
[1751236330540,3.2078,2475.0,2474.5,0.48482]
[1751236330741,3.2078,2475.0,2474.9,0.48475]
[1751236330942,3.2078,2475.0,2474.4,8.337]
[1751236331145,3.2078,2475.0,2474.2,6.756]
[1751236331340,1.7206,2474.9,2474.5,3.84043867]
[1751236331649,3.2078,2474.6,2474.3,0.48486]
[1751236331837,3.2078,2474.6,2474.1,5.39235707]
[1751236332042,3.2078,2474.6,2474.4,0.48483]
[1751236332347,3.2078,2474.6,2474.1,8.338]
[1751236332547,3.2078,2474.3,2473.9,0.48493]
[1751236332842,1.7206,2474.2,2473.6,3.84043867]
[1751236333046,1.7206,2474.2,2473.9,3.84043867]
[1751236333346,1.7206,2474.2,2473.9,0.48494]
[1751236333549,1.7206,2474.2,2473.5,13.2654]
[1751236333847,0.48503,2473.5,2473.4,3.83639566]
[1751236334140,0.48503,2473.5,2471.8,3.87309911]
[1751236334141,8.338,2473.5,2471.8,3.87309911]
[1751236334345,3.2078,2472.3,2471.8,3.87309911]
[1751236334546,3.2078,2473.2,2472.0,1.21329]
[1751236334738,3.2078,2472.6,2472.2,3.2078]
[1751236334942,3.2078,2472.6,2472.5,0.48522]
[1751236335351,3.2078,2472.9,2472.5,5.0]
[1751236335546,3.2078,2473.8,2473.5,0.48502]
[1751236335842,1.7378,2473.7,2473.2,3.2078]
[1751236336045,1.7378,2473.7,2472.8,15.38114126]
[1751236336046,1.7378,2473.7,2473.6,3.69281]
[1751236336239,1.7378,2473.7,2473.2,3.2078]
[1751236336439,1.7378,2473.7,2473.6,0.48501]
[1751236336644,3.2078,2473.8,2473.2,3.2078]
[1751236336840,2.37225868,2475.2,2473.7,3.2078]
[1751236337046,4.9817,2475.1,2473.9,3.69274]
[1751236337240,3.2078,2474.8,2473.9,3.2078]
[1751236337444,3.2078,2474.8,2473.5,7.04014126]
[1751236337445,10.1869,2474.7,2473.5,10.24794126]
[1751236337642,10.1869,2474.7,2473.5,3.2078]
[1751236337643,3.2078,2474.5,2473.5,3.2078]
[1751236337842,1.7739,2474.4,2473.5,3.2078]
[1751236338043,1.7739,2474.4,2473.9,3.2078]
[1751236338244,56.896,2474.9,2474.3,3.2078]
[1751236338444,3.2078,2475.3,2474.3,3.2078]
[1751236338645,1.7739,2475.2,2474.4,5.0292]
[1751236338844,1.7739,2475.2,2475.1,0.48471]
[1751236339051,8.89958,2475.8,2475.2,0.48468]
[1751236339239,5.0347,2475.7,2475.1,3.2078]
[1751236339446,10.2419,2475.7,2475.0,3.2078]
[1751236339639,1.8269,2475.7,2475.0,3.2078]
[1751236339845,10.2419,2475.7,2474.7,3.2078]
[1751236340146,3.2078,2475.2,2474.4,0.48484]
[1751236340346,3.2078,2475.2,2474.3,3.2078]
[1751236340347,1.8269,2475.1,2474.3,3.2078]
[1751236340649,0.48483,2474.5,2474.0,3.2078]
[1751236340844,6.8172,2475.1,2474.0,3.2078]
[1751236340845,1.8269,2474.4,2474.0,3.2078]
[1751236341151,0.48494,2474.0,2473.6,3.2078]
[1751236341351,2.31186,2473.9,2473.4,3.69283]
[1751236341545,1.8269,2473.9,2473.4,3.2078]
[1751236341741,3.2078,2474.4,2473.7,3.2078]
[1751236341742,0.48488,2474.3,2473.7,3.2078]
[1751236341945,0.48492,2474.1,2473.7,3.2078]
[1751236342139,1.7046,2474.3,2473.4,3.2078]
[1751236342350,0.48498,2473.8,2473.4,3.2078]
[1751236342547,1.7046,2473.7,2473.4,3.2078]
[1751236342742,8.415,2474.1,2473.4,3.2078]
[1751236342943,3.2078,2473.8,2473.0,3.2078]
[1751236343244,10.1196,2473.7,2473.0,3.2078]
[1751236343449,0.4851,2473.2,2473.0,3.2078]
[1751236343656,1.7046,2473.1,2473.0,3.2078]
[1751236343946,2.1897,2473.1,2473.0,3.2078]
[1751236344251,1.7046,2473.1,2473.0,3.2078]
[1751236344450,8.417,2473.3,2473.0,3.2078]
[1751236344649,2.1897,2473.2,2473.0,3.2078]
[1751236344850,2.18969,2473.2,2473.0,3.2078]
[1751236345051,1.7046,2473.2,2473.0,3.2078]
[1751236345351,0.4851,2473.1,2473.0,3.2078]
[1751236345846,1.7046,2473.2,2473.0,3.2078]
[1751236346044,1.7046,2473.2,2472.7,3.2078]
[1751236346248,0.48516,2472.8,2472.7,3.2078]
[1751236347043,1.7046,2473.2,2472.4,3.2078]
[1751236347243,0.48522,2472.5,2472.4,3.2078]
[1751236347445,13.418,2472.5,2472.0,3.2078]
[1751236347644,11.6258,2472.7,2472.0,3.2078]
[1751236347950,0.48521,2472.6,2472.3,3.2078]
[1751236348149,0.48522,2472.5,2472.3,3.2078]
[1751236348351,0.4853,2472.2,2472.0,3.2078]
[1751236348649,0.4853,2472.1,2472.0,3.2078]
[1751236349050,0.4853,2472.2,2472.0,3.2078]
[1751236349249,1.6552,2472.4,2471.5,3.2078]
[1751236349450,2.14045,2472.4,2472.0,0.48532]
[1751236349646,10.0752,2472.4,2471.8,3.2078]
[1751236349846,1.6552,2472.4,2472.1,0.48529]
[1751236350047,8.90523,2472.5,2472.2,3.2078]
[1751236350247,8.42,2472.6,2472.2,3.2078]
[1751236350550,8.42,2472.6,2472.2,3.69307]
[1751236350751,1.6552,2472.8,2472.2,3.2078]
[1751236350752,10.0752,2472.8,2472.2,3.2078]
[1751236350950,3.2078,2472.9,2472.3,1.671]
[1751236351454,8.42,2473.2,2472.7,3.2078]
[1751236351655,1.7201,2473.1,2472.8,0.48515]
[1751236351848,1.7201,2473.1,2472.7,3.2078]
[1751236352050,11.6278,2473.3,2472.4,3.2078]
[1751236352251,0.48522,2472.5,2472.4,3.2078]
[1751236352647,1.7201,2472.9,2472.5,0.4852]
[1751236352852,0.4851,2473.2,2472.8,3.2078]
[1751236353151,11.6288,2473.5,2472.8,3.2078]
[1751236353351,0.48514,2472.9,2472.8,3.2078]
[1751236353745,8.421,2473.0,2472.5,3.2078]
[1751236353948,1.7201,2472.8,2472.2,3.2078]
[1751236354143,1.7201,2472.8,2472.0,1.8009]
[1751236354144,3.2078,2472.6,2472.0,1.8009]
[1751236354350,1.7847,2472.9,2472.2,3.2078]
[1751236354554,0.48527,2472.3,2472.2,3.2078]
[1751236354754,0.48531,2472.1,2471.8,3.2078]
[1751236354954,2.20859,2472.2,2471.8,3.2078]
[1751236355156,0.48533,2472.0,2471.8,3.2078]
[1751236355353,2.20859,2472.2,2471.8,3.69315]
[1751236355546,8.421,2472.4,2471.9,0.48534]
[1751236355748,1.7233,2472.6,2472.2,3.2078]
[1751236355950,10.1453,2472.6,2472.2,3.2078]
[1751236356150,0.48526,2472.3,2472.2,3.2078]
[1751236356654,10.1453,2472.6,2472.2,3.2078]
[1751236357253,0.48526,2472.3,2472.2,3.2078]
[1751236357447,0.48532,2472.0,2471.9,3.2078]
[1751236358453,1.7091,2472.2,2471.9,3.2078]
[1751236358648,0.48532,2472.0,2471.9,3.2078]
[1751236359358,0.48531,2472.1,2471.9,3.2078]
[1751236359561,1.7091,2472.1,2471.9,3.2078]
[1751236359748,8.423,2472.1,2471.9,3.2078]
[1751236359953,0.48531,2472.1,2471.9,3.2078]
[1751236360153,0.4853,2472.1,2471.9,3.2078]
[1751236360356,8.423,2472.2,2471.9,3.2078]
[1751236360655,8.423,2472.5,2472.2,0.48527]
[1751236360855,8.423,2472.5,2472.2,3.2078]
[1751236361050,3.2078,2472.4,2471.8,3.2078]
[1751236361251,0.48534,2471.9,2471.8,3.2078]
[1751236361659,1.7757,2472.3,2471.8,3.2078]
[1751236361856,0.48528,2472.2,2471.8,3.69315]
[1751236362056,8.90928,2472.2,2471.8,3.69315]
[1751236362256,0.48532,2472.0,2471.8,3.2078]
[1751236362460,8.424,2472.2,2471.8,3.2078]
[1751236362661,0.48531,2472.1,2471.8,3.2078]
[1751236362852,8.424,2472.2,2471.6,1.8001]
[1751236362853,8.90929,2472.2,2471.6,1.8001]
[1751236363063,0.4853,2472.1,2471.6,1.8001]
[1751236363251,0.4853,2472.1,2471.8,0.48536]
[1751236363458,8.424,2472.5,2472.3,0.48526]
[1751236363657,0.48526,2472.3,2472.0,3.2078]
[1751236363860,3.2078,2472.7,2472.1,1.7343]
[1751236364056,3.2078,2472.7,2472.6,0.4852]
[1751236364256,3.2078,2472.7,2472.1,3.4252]
[1751236364856,8.424,2472.9,2472.6,0.4852]
[1751236365056,8.90914,2472.9,2472.5,0.48521]
[1751236365251,0.48516,2472.8,2472.4,2.21954]
[1751236365954,11.6318,2473.0,2472.6,3.2078]
[1751236366160,0.48514,2472.9,2472.8,0.79469956]
[1751236366356,2.31444,2472.9,2472.8,0.79469956]
[1751236366757,1.8293,2472.9,2472.8,0.79469956]
[1751236367059,0.48514,2472.9,2472.8,0.79469956]
[1751236367460,3.2078,2473.0,2472.8,0.79469956]
[1751236367961,3.69293,2473.0,2472.8,0.79469956]
[1751236368259,3.2078,2473.0,2472.8,0.79469956]
[1751236368457,3.2078,2473.0,2472.8,1.27984956]
[1751236368657,3.2078,2473.0,2472.9,0.48514]
[1751236368862,3.2078,2473.0,2472.8,0.79469956]
[1751236369058,0.48514,2472.9,2472.8,0.79469956]
[1751236369260,3.69294,2473.0,2472.8,0.79469956]
[1751236369461,3.2078,2473.0,2472.8,0.79469956]
[1751236369855,3.2078,2473.3,2473.1,0.48509]
[1751236370064,48.531,2473.5,2473.0,3.2078]
[1751236370360,8.76,2473.7,2473.1,4.9536]
[1751236370561,4.9237,2473.9,2473.2,0.48507]
[1751236370763,0.48501,2473.7,2473.3,0.48506]
[1751236371065,0.48501,2473.6,2473.5,0.80094182]
[1751236371464,1.7159,2473.8,2473.5,0.80094182]
[1751236371659,0.48501,2473.6,2473.5,0.80094182]
[1751236372055,3.69281,2473.6,2473.5,0.80094182]
[1751236372361,0.48508,2473.2,2473.1,3.2078]
[1751236372562,3.2078,2473.6,2473.1,3.2078]
[1751236372863,2.37225868,2473.8,2473.2,3.2078]
[1751236373063,0.48503,2473.5,2473.4,0.80845743]
[1751236373462,11.4818,2473.9,2473.4,0.80845743]
[1751236373663,0.48503,2473.5,2473.4,0.80845743]
[1751236373967,11.96683,2473.5,2473.4,0.80845743]
[1751236374662,8.274,2473.5,2473.4,0.80845743]
[1751236374855,3.2078,2473.9,2473.4,0.80845743]
[1751236374856,8.274,2473.8,2473.5,0.48503]
[1751236375058,0.48496,2473.9,2473.5,3.69281]
[1751236375363,8.274,2473.8,2473.5,3.2078]
[1751236375563,1.8512,2474.1,2473.5,3.2078]
[1751236375760,0.48493,2474.0,2473.5,4.9252]
[1751236375961,10.1252,2474.1,2473.5,4.9252]
[1751236375962,0.48492,2474.1,2473.5,4.9252]
[1751236376264,3.2078,2474.2,2473.5,4.9252]
[1751236376464,0.48492,2474.1,2473.5,6.7445]
[1751236376667,0.48492,2474.1,2473.7,0.48498]
[1751236377061,0.48491,2474.1,2473.5,7.22951]
[1751236377269,0.48494,2474.0,2473.6,0.485]
[1751236377467,3.2078,2474.2,2473.5,6.7445]
[1751236377468,0.48495,2473.9,2473.5,6.7445]
[1751236377664,0.48494,2474.0,2473.6,0.485]
[1751236377966,1.8512,2474.1,2473.5,6.7445]
[1751236378162,0.485,2473.7,2473.5,3.2078]
[1751236378370,0.48498,2473.8,2473.5,3.2078]
[1751236378557,1.8512,2474.1,2473.5,3.69281]
[1751236378758,8.273,2474.0,2473.5,3.2078]
[1751236378959,0.48499,2473.7,2473.5,3.2078]
[1751236379465,1.729,2473.9,2473.5,3.2078]
[1751236379768,1.729,2473.6,2473.5,3.2078]
[1751236379963,8.273,2474.0,2473.5,3.2078]
[1751236380166,1.729,2473.9,2473.5,3.2078]
[1751236380364,0.48501,2473.6,2473.5,3.2078]
[1751236380565,1.729,2473.9,2473.4,0.80845743]
[1751236380566,0.48503,2473.5,2473.4,0.80845743]
[1751236381064,0.48503,2473.5,2472.8,4.00249956]
[1751236381065,0.48514,2472.9,2472.8,4.00249956]
[1751236381370,3.2078,2473.2,2472.8,4.00249956]
[1751236381573,0.48514,2472.9,2472.8,4.00249956]
[1751236382372,5.48514,2472.9,2472.8,0.79469956]
[1751236382571,0.48514,2472.9,2472.8,0.79469956]
[1751236382766,1.8362,2473.1,2472.8,0.79469956]
[1751236382968,0.48514,2472.9,2472.8,0.79469956]
[1751236383170,8.273,2473.0,2472.8,0.79469956]
[1751236383370,1.8362,2473.1,2472.8,0.79469956]
[1751236383371,2.32131,2473.1,2472.8,0.79469956]
[1751236383568,0.48513,2473.0,2472.8,0.79469956]
[1751236383766,1.8362,2473.1,2472.8,0.79469956]
[1751236383966,0.48513,2473.0,2472.8,0.79469956]
[1751236384163,0.48514,2472.9,2472.8,0.79469956]
[1751236384368,2.32134,2472.9,2472.8,0.79469956]
[1751236384570,11.4808,2473.2,2472.8,0.79469956]
[1751236384571,8.273,2473.0,2472.8,0.79469956]
[1751236384763,1.8487,2473.4,2472.8,0.79469956]
[1751236384969,8.273,2473.5,2473.1,3.2078]
[1751236385272,10.61594,2473.5,2473.1,3.6929]
[1751236385570,3.69279,2473.7,2473.3,0.48506]
[1751236385869,11.4808,2473.7,2473.2,1.8259]
[1751236386066,0.48512,2473.0,2472.8,4.00249956]
[1751236386269,8.273,2473.3,2472.8,4.00249956]
[1751236386469,0.48512,2473.0,2472.8,4.00249956]
[1751236386873,0.48514,2472.9,2472.8,4.00249956]
[1751236387072,2.34304,2472.9,2472.8,4.00249956]
[1751236387372,0.48522,2472.5,2472.4,3.2078]
[1751236387873,10.1309,2472.9,2472.4,3.2078]
[1751236388070,0.48522,2472.5,2472.4,3.2078]
[1751236388272,0.48524,2472.4,2472.3,276.6955739]
[1751236388472,5.46334,2472.4,2472.3,276.6955739]
[1751236388966,13.73734,2472.4,2472.3,276.6955739]
[1751236389571,4.9335,2473.3,2472.3,281.6955739]
[1751236389771,4.0939,2473.2,2472.9,3.2078]
[1751236389980,4.0939,2473.2,2472.8,0.80759807]
[1751236389981,2.2554,2473.2,2472.8,0.80759807]
[1751236390170,0.48514,2472.9,2472.8,0.80759807]
[1751236390472,1.7703,2473.2,2472.9,0.48513]
[1751236390774,8.75902,2473.6,2473.2,0.48508]
[1751236390970,0.48502,2473.6,2473.2,0.48508]
[1751236391470,5.0627,2473.7,2473.2,5.03091702]
[1751236391674,3.2078,2473.7,2473.2,5.03091702]
[1751236391871,3.9476832,2474.5,2473.5,8.23871702]
[1751236391872,11.4818,2474.0,2473.5,8.23871702]
[1751236392071,3.2078,2474.0,2473.7,0.48498]
[1751236392471,3.69274,2474.0,2473.6,1.8784]
[1751236392773,3.2078,2474.0,2473.8,0.48495]
[1751236392972,3.2078,2474.0,2473.6,1.8784]
[1751236393270,2.37225868,2474.5,2473.9,3.2078]
[1751236393475,2.85707868,2474.6,2474.1,5.51582702]
[1751236393774,0.48482,2474.6,2474.1,0.48491]
[1751236393974,0.48482,2474.6,2474.2,1.7563]
[1751236394169,8.274,2474.8,2474.4,0.82198203]
[1751236394369,0.48481,2474.6,2474.4,0.82198203]
[1751236394570,0.48483,2474.5,2474.4,0.82198203]
[1751236394878,2.37225868,2474.9,2474.4,0.82198203]
[1751236394879,8.272,2474.6,2474.4,0.82198203]
[1751236395075,8.272,2474.8,2474.4,0.82198203]
[1751236395272,8.272,2474.8,2474.6,0.48481]
[1751236395473,2.37225868,2474.9,2474.5,1.7563]
[1751236395676,2.37225868,2474.9,2474.4,0.82198203]
[1751236395877,5.58005868,2475.0,2474.5,0.48482]
[1751236396076,8.272,2474.9,2474.5,1.7563]
[1751236396279,0.48483,2474.5,2474.4,0.82198203]
[1751236396480,8.272,2474.9,2474.4,0.82198203]
[1751236396481,0.48482,2474.6,2474.4,0.82198203]
[1751236396784,8.272,2474.9,2474.4,0.82198203]
[1751236397081,8.272,2474.8,2474.4,0.82198203]
[1751236397281,8.272,2474.8,2474.4,2.61368203]
[1751236397483,8.75678,2474.8,2474.4,2.61368203]
[1751236397686,0.48481,2474.7,2474.4,0.82198203]
[1751236398284,8.272,2474.8,2474.4,0.82198203]
[1751236398690,0.48482,2474.6,2474.4,0.82198203]